bitfinex/quotes_SOLUSD_20220128
["timestamp","ask_amount","ask_price","bid_price","bid_amount"]
[1643400937075,4.54030685,91.406,91.31,13.04]
[1643400937276,4.54030685,91.427,91.311,109.25]
[1643400937479,4.54030685,91.427,91.32,6.0]
[1643400937676,24.55244398,91.411,91.321,53.99995916]
[1643400937878,92.60519217,91.4,91.321,47.99995916]
[1643400938079,6.0,91.39,91.29,13.04]
[1643400938277,0.25,91.389,91.29,13.04]
[1643400938478,8.95669142,91.389,91.29,13.04]
[1643400938685,76.17719217,91.4,91.29,13.04]
[1643400938878,92.60519217,91.4,91.31,16.426]
[1643400939076,6.0,91.39,91.321,41.47946407]
[1643400939576,6.0,91.418,91.321,41.47946407]
[1643400939777,113.7,91.416,91.321,41.47946407]
[1643400939978,6.0,91.406,91.321,41.47946407]
[1643400940178,16.428,91.4,91.321,41.47946407]
[1643400940477,19.93100142,91.399,91.321,41.47946407]
[1643400940680,6.0,91.39,91.321,41.47946407]
[1643400940879,6.25,91.389,91.321,41.47946407]
[1643400941076,6.25,91.389,91.32,13.04]
[1643400941277,6.25,91.389,91.301,48.8481]
[1643400941278,16.432,91.38,91.26,16.434]
[1643400941476,16.432,91.38,91.251,69.7193]
[1643400941681,16.432,91.38,91.27,6.0]
[1643400941682,6.0,91.37,91.27,6.0]
[1643400941881,0.25,91.369,91.26,13.04]
[1643400942181,14.42694257,91.369,91.261,41.96820577]
[1643400942408,36.12000142,91.34,91.261,41.96820577]
[1643400942784,0.25,91.339,91.262,0.25]
[1643400943187,8.95669142,91.369,91.262,0.25]
[1643400943383,16.435,91.36,91.262,0.25]
[1643400943582,16.435,91.36,91.262,3.20669142]
[1643400943785,0.25,91.359,91.262,0.25]
[1643400943984,6.0,91.35,91.262,0.25]
[1643400944184,18.70408325,91.349,91.262,0.25]
[1643400944388,18.95408325,91.349,91.262,0.25]
[1643400944584,6.0,91.339,91.262,0.25]
[1643400944785,0.25,91.338,91.262,0.5242]
[1643400945983,16.44,91.33,91.262,0.2742]
[1643400946387,18.68021727,91.319,91.262,0.2742]
[1643400946585,6.0,91.309,91.262,0.2742]
[1643400946784,0.25,91.308,91.262,0.2742]
[1643400947392,16.447,91.3,91.262,0.2742]
[1643400947589,6.0,91.29,91.262,0.2742]
[1643400947785,0.25,91.289,91.262,0.2742]
[1643400948188,6.4710353,91.289,91.262,0.2742]
[1643400948391,6.0,91.309,91.262,0.2742]
[1643400948592,16.449,91.28,91.262,0.2742]
[1643400949996,6.0,91.27,91.262,0.2742]
[1643400950191,17.88327954,91.269,91.262,0.2742]
[1643400950487,18.13327954,91.269,91.262,0.2742]
[1643400951090,0.25,91.269,91.262,0.2742]
[1643400952490,6.0,91.263,91.262,0.2742]
[1643400952991,6.25,91.263,91.262,0.0042]
[1643400953392,6.25,91.263,91.191,0.25]
[1643400953590,16.457,91.24,91.191,0.25]
[1643400953798,16.457,91.24,91.18,13.04]
[1643400953998,23.45628512,91.263,91.19,6.0]
[1643400954196,23.45628512,91.263,91.191,34.98842324]
[1643400954496,23.45628512,91.263,91.191,35.23842324]
[1643400954695,0.25,91.262,91.191,35.23842324]
[1643400955998,16.452,91.26,91.191,35.23842324]
[1643400956397,0.25,91.259,91.191,35.23842324]
[1643400956997,0.25,91.259,91.13,163.02]
[1643400956998,16.455,91.25,91.17,13.04]
[1643400957201,16.455,91.25,91.07,163.02]
[1643400957399,6.0,91.24,91.11,13.04]
[1643400957604,6.0,91.239,91.11,13.04]
[1643400957804,21.96062178,91.239,91.11,13.04]
[1643400958003,1.69496745,91.238,91.111,39.81438514]
[1643400958204,19.78554125,91.209,91.111,39.81438514]
[1643400958608,6.0,91.199,91.121,6.0]
[1643400958804,0.25,91.198,91.121,6.0]
[1643400959405,0.25,91.198,91.122,0.25]
[1643400960016,6.0,91.21,91.122,6.25]
[1643400960017,16.466,91.19,91.122,6.25]
[1643400960508,0.25,91.209,91.122,6.25]
[1643400960714,0.25,91.209,91.13,13.04]
[1643400960909,0.25,91.209,91.14,6.0]
[1643400961110,0.25,91.209,91.141,23.5845]
[1643400961519,0.25,91.209,91.142,45.11903093]
[1643400961910,0.25,91.219,91.142,45.11903093]
[1643400962520,16.46,91.22,91.143,0.25]
[1643400965139,54.869,91.24,91.143,0.25]
[1643400965335,6.0,91.249,91.152,6.0]
[1643400965543,6.0,91.249,91.16,19.04]
[1643400965935,6.0,91.249,91.163,6.0]
[1643400966136,34.04007082,91.275,91.17,6.0]
[1643400966340,6.0,91.279,91.18,13.04]
[1643400966537,6.0,91.279,91.181,24.9994]
[1643400966837,6.0,91.279,91.181,25.2494]
[1643400967039,16.453,91.26,91.181,25.2494]
[1643400967237,16.453,91.26,91.182,38.85889103]
[1643400967440,6.0,91.25,91.182,38.85889103]
[1643400967640,6.0,91.25,91.183,0.25]
[1643400968037,6.0,91.261,91.183,0.25]
[1643400968639,16.454,91.25,91.182,38.85889103]
[1643400969041,6.0,91.27,91.182,147.85889103]
[1643400969441,6.0,91.29,91.192,6.0]
[1643400969641,6.0,91.289,91.201,38.95985639]
[1643400969840,16.449,91.28,91.202,0.25]
[1643400970041,6.44831549,91.279,91.202,0.25]
[1643400970640,6.44831549,91.279,91.201,38.95985639]
[1643400970843,0.25,91.278,91.201,38.95985639]
[1643400971041,16.454,91.25,91.201,38.95985639]
[1643400971240,0.25,91.249,91.201,38.95985639]
[1643400971844,0.25,91.249,91.202,0.25]
[1643400972343,16.456,91.24,91.202,0.25]
[1643400972943,16.456,91.24,91.201,38.95985639]
[1643400973742,34.85590012,91.239,91.201,38.95985639]
[1643400973942,34.85590012,91.239,91.18,13.04]
[1643400974146,0.25,91.239,91.18,13.04]
[1643400974341,0.25,91.239,91.181,0.25]
[1643400974941,16.458,91.23,91.14,13.04]
[1643400975140,38.71742207,91.229,91.141,43.31731388]
[1643400975345,6.0,91.219,91.141,43.31731388]
[1643400975642,6.0,91.219,91.108,23.0918]
[1643400975643,2.41,91.216,91.108,23.0918]
[1643400975845,2.41,91.216,91.1,13.04]
[1643400975846,0.25,91.215,91.09,13.04]
[1643400976044,6.0,91.206,91.091,48.0543]
[1643400976245,16.463,91.2,91.091,48.0543]
[1643400976648,6.0,91.19,91.092,41.78488645]
[1643400976846,6.0,91.19,91.101,6.0]
[1643400977048,6.0,91.19,91.11,13.04]
[1643400977244,6.0,91.223,91.12,13.04]
[1643400977447,10.459,91.22,91.13,13.04]
[1643400977646,6.0,91.233,91.14,6.0]
[1643400977846,46.20600367,91.248,91.15,13.04]
[1643400978046,6.0,91.238,91.152,41.78488645]
[1643400978249,6.0,91.238,91.153,0.25]
[1643400978849,16.458,91.23,91.153,0.25]
[1643400979050,16.458,91.23,91.162,6.0]
[1643400979252,16.458,91.23,91.163,0.25]
[1643400980546,16.458,91.23,91.161,0.25]
[1643400981547,0.25,91.229,91.16,13.04]
[1643400981753,16.463,91.21,91.161,0.25]
[1643400982848,16.463,91.21,91.153,0.25]
[1643400983052,37.71917503,91.219,91.153,0.25]
[1643400983249,0.25,91.218,91.153,0.25]
[1643400983451,6.0,91.209,91.153,0.25]
[1643400983853,0.25,91.208,91.13,13.04]
[1643400984150,6.0,91.207,91.12,13.04]
[1643400984356,0.25,91.206,91.11,13.04]
[1643400984556,6.0,91.198,91.12,19.04]
[1643400984853,6.0,91.198,91.121,109.0]
[1643400985252,6.0,91.242,91.122,0.25]
[1643400985452,6.0,91.242,91.122,65.54211999]
[1643400985653,16.459,91.24,91.131,6.0]
[1643400985854,16.459,91.24,91.141,25.76900619]
[1643400986054,6.0,91.23,91.141,25.76900619]
[1643400986254,6.0,91.23,91.142,0.25]
[1643400986554,40.18404031,91.241,91.142,0.25]
[1643400986555,6.0,91.231,91.142,0.25]
[1643400986753,16.461,91.22,91.142,24.8931]
[1643400987153,6.0,91.21,91.142,24.8931]
[1643400987857,3.20669142,91.209,91.101,23.9404]
[1643400988053,3.20669142,91.209,91.035,113.7]
[1643400988054,6.0,91.199,91.08,13.04]
[1643400988254,0.25,91.198,91.07,13.04]
[1643400988454,3.20669142,91.198,91.07,13.04]
[1643400988656,9.20669142,91.198,91.07,13.04]
[1643400988858,39.26475152,91.196,91.073,36.20539044]
[1643400989058,6.0,91.186,91.073,36.20539044]
[1643400989256,0.25,91.185,91.074,0.25]
[1643400989657,6.0,91.185,91.083,6.0]
[1643400989859,2.95669142,91.208,91.09,13.04]
[1643400990056,11.46466787,91.229,91.1,6.0]
[1643400990257,11.46466787,91.229,91.11,13.04]
[1643400990258,16.465,91.2,91.11,13.04]
[1643400990461,16.465,91.2,91.111,109.0]
[1643400990660,6.0,91.19,91.111,35.86335699]
[1643400990859,2.98600857,91.189,91.111,35.86335699]
[1643400991268,0.25,91.188,91.111,35.86335699]
[1643400991480,6.0,91.179,91.111,35.61335699]
[1643400991869,0.25,91.178,91.111,35.61335699]
[1643400992475,16.473,91.16,91.111,35.61335699]
[1643400992872,0.25,91.159,91.111,35.61335699]
[1643400993076,6.0,91.15,91.111,35.61335699]
[1643400993272,54.909,91.18,91.112,0.25]
[1643400993480,2.41,91.236,91.112,0.25]
[1643400993679,6.0,91.17,91.112,0.25]
[1643400993877,0.25,91.169,91.112,0.25]
[1643400995074,16.468,91.18,91.112,0.25]
[1643400995274,0.25,91.179,91.112,0.25]
[1643400995474,3.03949728,91.212,91.12,13.04]
[1643400995675,3.03949728,91.22,91.12,13.04]
[1643400995874,3.03949728,91.228,91.121,0.25]
[1643400996074,6.0,91.218,91.12,13.04]
[1643400996274,16.464,91.2,91.121,0.25]
[1643400996477,10.71173842,91.199,91.12,13.04]
[1643400996874,10.71173842,91.199,91.121,0.25]
[1643400997080,3.03949728,91.224,91.121,0.25]
[1643400997279,0.25,91.223,91.121,0.25]
[1643400997476,16.463,91.21,91.121,0.25]
[1643400997876,6.0,91.2,91.121,0.25]
[1643400998077,43.81299565,91.199,91.121,0.25]
[1643400998897,16.466,91.19,91.121,0.25]
[1643401002103,3.03949728,91.226,91.121,109.25]
[1643401002505,6.0,91.216,91.131,6.0]
[1643401002702,6.0,91.216,91.14,13.04]
[1643401002903,39.89414389,91.225,91.141,36.45539044]
[1643401003103,6.0,91.215,91.141,36.45539044]
[1643401003303,16.461,91.22,91.141,36.45539044]
[1643401003908,0.25,91.219,91.141,36.45539044]
[1643401004506,22.462,91.21,91.141,36.45539044]
[1643401004707,7.46710868,91.209,91.141,36.45539044]
[1643401004906,7.71710868,91.209,91.141,36.45539044]
[1643401005212,22.462,91.21,91.141,36.45539044]
[1643401005507,21.962,91.21,91.141,36.45539044]
[1643401007912,6.0,91.21,91.141,36.45539044]
[1643401008113,6.0,91.22,91.141,36.45539044]
[1643401008311,6.0,91.22,91.142,46.726]
[1643401008714,16.46,91.23,91.143,0.25]
[1643401008917,39.64893082,91.224,91.143,0.25]
[1643401009114,16.461,91.22,91.143,0.25]
[1643401010113,0.25,91.219,91.143,0.25]
[1643401010313,45.26140806,91.219,91.143,0.25]
[1643401011614,6.0,91.209,91.143,0.25]
[1643401012215,0.25,91.208,91.143,0.25]
[1643401012415,2.34984451,91.199,91.142,46.726]
[1643401012718,6.0,91.189,91.141,36.20539044]
[1643401013216,0.25,91.188,91.141,36.20539044]
[1643401013414,0.25,91.188,91.11,13.04]
[1643401013820,0.25,91.188,91.111,0.25]
[1643401014223,0.25,91.198,91.111,0.25]
[1643401014420,0.25,91.198,91.111,41.74322347]
[1643401015023,38.3083556,91.179,91.111,41.74322347]
[1643401015422,0.25,91.178,91.111,41.74322347]
[1643401016024,6.0,91.169,91.111,41.74322347]
[1643401016229,16.47,91.17,91.111,41.74322347]
[1643401016423,0.25,91.168,91.111,41.74322347]
[1643401017467,0.25,91.169,91.111,41.74322347]
[1643401018051,0.25,91.169,91.11,13.04]
[1643401018253,16.472,91.16,91.076,1.50669724]
[1643401018451,22.472,91.16,91.08,13.04]
[1643401018648,0.25,91.159,91.08,13.04]
[1643401019049,9.30289697,91.159,91.082,37.4894817]
[1643401019449,16.474,91.15,91.082,37.4894817]
[1643401019649,6.0,91.149,91.083,0.25]
[1643401019850,0.25,91.149,91.083,0.25]
[1643401020352,0.25,91.149,91.08,13.04]
[1643401020551,22.475,91.14,91.063,1.50669724]
[1643401020751,0.25,91.139,91.052,1.50669724]
[1643401021352,0.25,91.139,91.056,41.64420308]
[1643401021753,0.25,91.139,91.057,0.25]
[1643401021952,16.478,91.13,91.057,0.25]
[1643401022156,38.3083556,91.129,91.057,0.25]
[1643401022352,16.478,91.13,91.057,0.25]
[1643401022552,16.478,91.13,91.07,13.04]
[1643401022751,16.478,91.13,91.071,0.25]
[1643401023353,16.478,91.13,91.071,30.42454435]
[1643401025159,6.0,91.149,91.071,30.42454435]
[1643401025360,1.52296623,91.168,91.071,30.42454435]
[1643401025558,1.52296623,91.168,91.072,159.39529142]
[1643401025758,1.52296623,91.183,91.073,0.25]
[1643401025961,1.52296623,91.191,91.073,15.5105913]
[1643401026261,37.50445492,91.191,91.082,1.50669724]
[1643401026457,16.467,91.19,91.092,109.0]
[1643401026657,16.467,91.19,91.1,13.04]
[1643401026858,16.467,91.19,91.101,0.25]
[1643401027057,16.467,91.19,91.101,109.25]
[1643401027258,0.25,91.189,91.103,109.0]
[1643401027856,0.25,91.189,91.104,0.25]
[1643401029262,0.25,91.189,91.103,0.25]
[1643401030062,1.52296623,91.2,91.103,109.25]
[1643401030264,1.52296623,91.2,91.104,2.95669142]
[1643401030464,19.44691052,91.225,91.104,2.95669142]
[1643401030465,1.52296623,91.21,91.113,6.0]
[1643401030660,1.52296623,91.216,91.12,13.04]
[1643401030861,1.52296623,91.218,91.121,133.2346]
[1643401031062,1.52296623,91.218,91.131,38.05824552]
[1643401031261,1.52296623,91.218,91.14,13.04]
[1643401031466,1.52296623,91.217,91.14,13.04]
[1643401031661,1.52296623,91.219,91.141,47.9047]
[1643401031861,1.52296623,91.224,91.14,13.04]
[1643401032066,1.52296623,91.219,91.14,13.04]
[1643401032262,1.52296623,91.221,91.141,0.25]
[1643401032863,0.25,91.22,91.141,0.25]
[1643401033062,16.711,91.22,91.141,0.25]
[1643401033864,1.52296623,91.224,91.141,0.25]
[1643401034069,16.462,91.22,91.141,0.25]
[1643401034763,45.82836888,91.219,91.141,0.25]
[1643401035763,0.25,91.218,91.14,13.04]
[1643401035989,0.25,91.218,91.132,47.6547]
[1643401035990,16.463,91.21,91.131,32.05824552]
[1643401036166,1.52296623,91.203,91.1,13.04]
[1643401036369,1.52296623,91.196,91.1,13.04]
[1643401036584,6.0,91.186,91.1,13.04]
[1643401036767,0.25,91.185,91.1,13.04]
[1643401036967,6.0,91.183,91.1,13.04]
[1643401037168,1.53288369,91.179,91.101,39.13695533]
[1643401037369,0.25,91.178,91.101,39.13695533]
[1643401037567,6.0,91.169,91.101,39.13695533]
[1643401037767,39.72798078,91.159,91.101,39.13695533]
[1643401038169,0.25,91.158,91.101,39.13695533]
[1643401039570,0.25,91.158,91.1,13.04]
[1643401039571,16.474,91.15,91.1,13.04]
[1643401039771,0.25,91.149,91.08,13.04]
[1643401039980,0.25,91.149,91.04,40.3749]
[1643401039981,6.0,91.14,91.07,13.04]
[1643401040370,0.25,91.139,91.07,13.04]
[1643401040570,0.25,91.139,91.071,49.64952918]
[1643401040773,0.25,91.148,91.071,49.64952918]
[1643401040971,16.477,91.13,91.071,49.64952918]
[1643401041671,0.25,91.148,91.071,49.64952918]
[1643401042270,0.25,91.15,91.072,0.25]
[1643401042669,39.10200982,91.154,91.072,0.25]
[1643401043069,6.0,91.144,91.072,0.25]
[1643401043470,8.25924275,91.139,91.072,0.25]
[1643401043870,6.0,91.129,91.072,0.25]
[1643401044069,16.48,91.12,91.072,0.25]
[1643401044474,0.25,91.128,91.072,0.25]
[1643401045272,0.25,91.139,91.072,0.25]
[1643401045472,6.0,91.137,91.072,0.25]
[1643401045873,6.0,91.13,91.072,0.25]
[1643401046075,0.25,91.129,91.071,49.64952918]
[1643401046272,0.25,91.129,91.072,0.25]
[1643401046476,0.25,91.129,91.071,49.64952918]
[1643401047077,0.25,91.129,91.072,0.25]
[1643401047877,0.25,91.129,91.071,49.64952918]
[1643401048074,6.0,91.122,91.071,49.64952918]
[1643401048673,6.0,91.122,91.072,0.25]
[1643401049478,6.0,91.12,91.072,0.25]
[1643401049975,6.0,91.12,91.071,49.64952918]
[1643401050377,6.0,91.12,91.072,0.25]
[1643401050580,6.0,91.14,91.072,0.25]
[1643401050778,6.0,91.159,91.072,109.25]
[1643401050976,46.98028756,91.162,91.072,109.25]
[1643401050977,46.98028756,91.162,91.073,22.9548]
[1643401051204,0.25,91.158,91.073,22.9548]
[1643401051376,0.25,91.158,91.074,0.25]
[1643401051578,16.474,91.15,91.074,0.25]
[1643401051778,0.25,91.149,91.074,0.25]
[1643401052382,6.0,91.152,91.074,0.25]
[1643401052583,6.0,91.16,91.074,0.25]
[1643401052786,16.476,91.14,91.071,49.64952918]
[1643401053082,16.476,91.14,91.074,0.25]
[1643401053282,0.25,91.139,91.074,0.25]
[1643401053684,16.476,91.14,91.074,0.25]
[1643401053887,16.476,91.14,91.071,49.64952918]
[1643401054294,16.476,91.14,91.072,0.25]
[1643401057889,6.0,91.16,91.072,109.25]
[1643401058095,1.52296623,91.177,91.073,2.95669142]
[1643401058295,1.52296623,91.177,91.082,6.0]
[1643401058496,1.52296623,91.192,91.09,13.04]
[1643401058714,1.52296623,91.192,91.1,13.04]
[1643401058919,1.52296623,91.195,91.11,13.04]
[1643401059116,1.52296623,91.197,91.121,109.0]
[1643401059321,1.52296623,91.2,91.13,13.04]
[1643401059516,1.52296623,91.205,91.13,13.04]
[1643401059721,1.52296623,91.208,91.131,0.25]
[1643401060121,45.49459925,91.207,91.131,32.4253492]
[1643401060323,1.52296623,91.206,91.131,32.4253492]
[1643401060521,3.03949728,91.232,91.131,32.4253492]
[1643401060822,3.03949728,91.236,91.132,13.8983385]
[1643401061020,3.03949728,91.246,91.142,6.0]
[1643401061227,3.03949728,91.258,91.15,13.04]
[1643401061521,3.03949728,91.271,91.16,6.0]
[1643401061719,48.0826286,91.278,91.16,6.0]
[1643401061720,48.0826286,91.278,91.171,109.0]
[1643401061919,48.0826286,91.278,91.172,34.22582255]
[1643401062119,6.0,91.268,91.181,6.0]
[1643401062323,6.0,91.268,91.19,13.04]
[1643401062520,6.0,91.268,91.2,19.04]
[1643401063021,6.0,91.268,91.201,0.25]
[1643401063220,6.0,91.268,91.2,19.04]
[1643401063420,6.0,91.268,91.191,36.06995865]
[1643401063620,3.20669142,91.267,91.191,36.06995865]
[1643401063819,3.03557521,91.266,91.191,36.06995865]
[1643401064024,6.8015902,91.256,91.191,36.06995865]
[1643401064222,16.457,91.25,91.191,36.06995865]
[1643401064621,6.0,91.24,91.191,36.06995865]
[1643401065023,43.69466182,91.242,91.191,36.06995865]
[1643401065420,0.25,91.241,91.192,0.25]
[1643401065620,16.458,91.24,91.17,13.04]
[1643401065822,6.0,91.232,91.1,179.1257]
[1643401066021,54.881,91.23,91.14,13.04]
[1643401066220,54.881,91.23,91.12,13.04]
[1643401066423,6.0,91.22,91.12,13.04]
[1643401066623,6.0,91.22,91.088,18.29202555]
[1643401066624,5.18955698,91.219,91.1,13.04]
[1643401066827,18.80673121,91.219,91.08,13.04]
[1643401067123,6.0,91.209,91.07,13.04]
[1643401067324,0.25,91.208,91.07,13.04]
[1643401067528,6.0,91.2,91.07,13.04]
[1643401067730,14.38647884,91.179,91.071,47.29783605]
[1643401067926,14.38647884,91.179,91.08,6.0]
[1643401068127,6.0,91.169,91.081,6.0]
[1643401068330,0.25,91.168,91.081,6.0]
[1643401068729,0.25,91.168,91.082,0.25]
[1643401069128,34.49773996,91.159,91.082,0.25]
[1643401069331,0.25,91.158,91.082,0.25]
[1643401069526,6.0,91.149,91.082,0.25]
[1643401069727,0.25,91.158,91.082,0.25]
[1643401070535,0.25,91.159,91.082,0.25]
[1643401071836,0.25,91.167,91.081,0.25]
[1643401072738,6.0,91.158,91.08,13.04]
[1643401073135,0.25,91.157,91.08,13.04]
[1643401073940,10.28897927,91.149,91.081,0.25]
[1643401074340,0.25,91.148,91.081,0.25]
[1643401075241,3.03949728,91.209,91.081,0.25]
[1643401075439,54.895,91.2,91.081,0.25]
[1643401075643,6.0,91.19,91.081,0.25]
[1643401075841,16.471,91.17,91.081,0.25]
[1643401076040,47.784958,91.169,91.081,47.9508]
[1643401076247,48.034958,91.169,91.081,47.9508]
[1643401076843,48.034958,91.169,91.081,47.7008]
[1643401077473,16.473,91.16,91.081,47.7008]
[1643401077643,6.0,91.159,91.081,47.7008]
[1643401077844,1.0992608,91.149,91.081,47.7008]
[1643401078043,6.0,91.139,91.071,47.29783605]
[1643401078255,0.25,91.138,91.071,47.29783605]
[1643401080047,16.48,91.12,91.072,0.25]
[1643401080242,37.18304044,91.119,91.072,0.25]
[1643401080846,37.18304044,91.119,91.046,49.149]
[1643401081046,6.0,91.109,91.046,49.149]
[1643401081250,0.25,91.108,91.046,49.149]
[1643401081849,0.25,91.108,91.047,41.46838284]
[1643401082049,16.484,91.1,91.047,41.46838284]
[1643401082248,12.20117836,91.099,91.048,0.25]
[1643401082447,6.0,91.09,91.048,0.25]
[1643401082646,6.0,91.089,91.048,0.25]
[1643401083049,0.25,91.088,91.048,0.25]
[1643401083253,6.0,91.089,91.048,0.25]
[1643401084985,72.8661,91.158,91.048,0.25]
[1643401085187,72.8661,91.158,91.05,13.04]
[1643401085385,72.8661,91.158,91.051,0.25]
[1643401085593,39.29492899,91.157,91.051,0.25]
[1643401085789,39.29492899,91.157,91.051,48.491]
[1643401086086,16.478,91.13,91.051,48.241]
[1643401086285,9.83928981,91.129,91.051,48.241]
[1643401086487,9.83928981,91.129,91.052,0.25]
[1643401087989,9.83928981,91.129,91.05,13.04]
[1643401087990,6.0,91.119,91.05,13.04]
[1643401088193,6.0,91.119,91.047,41.46838284]
[1643401088391,6.0,91.11,91.047,41.46838284]
[1643401088592,35.89349829,91.109,91.047,41.46838284]
[1643401088803,6.0,91.11,91.047,41.46838284]
[1643401088992,0.25,91.118,91.047,41.46838284]
[1643401089794,43.17794404,91.136,91.048,47.9901]
[1643401089997,16.478,91.13,91.05,13.04]
[1643401090493,16.478,91.13,91.051,0.25]
[1643401090894,3.03949728,91.195,91.051,109.25]
[1643401091195,6.0,91.167,91.051,109.25]
[1643401091597,6.0,91.166,91.051,109.25]
[1643401092105,16.475,91.15,91.051,109.25]
[1643401092296,5.62112963,91.149,91.051,109.25]
[1643401094095,16.476,91.14,91.051,109.25]
[1643401094296,0.25,91.139,91.051,109.25]
[1643401095095,6.0,91.166,91.06,16.471]
[1643401095096,16.472,91.16,91.06,16.471]
[1643401095297,16.472,91.16,91.07,13.04]
[1643401095798,16.472,91.16,91.071,0.25]
[1643401095999,36.9088737,91.159,91.072,28.82739836]
[1643401096402,16.474,91.15,91.073,0.25]
[1643401096804,0.25,91.149,91.073,0.25]
[1643401096998,16.474,91.15,91.073,0.25]
[1643401098305,36.9088737,91.159,91.073,109.25]
[1643401098703,0.25,91.158,91.073,109.25]
[1643401098905,0.25,91.158,91.073,0.25]
[1643401099103,0.25,91.158,91.073,109.25]
[1643401099301,36.9088737,91.159,91.073,109.25]
[1643401099703,54.911,91.18,91.073,109.25]
[1643401099903,0.25,91.179,91.073,112.20669142]
[1643401100304,16.47,91.17,91.073,112.20669142]
[1643401100506,19.39810778,91.198,91.08,16.467]
[1643401100708,47.9304,91.24,91.073,112.20669142]
[1643401100709,3.03949728,91.21,91.09,13.04]
[1643401100908,3.03949728,91.219,91.091,47.552]
[1643401101109,28.65608317,91.268,91.101,6.0]
[1643401101110,3.03949728,91.228,91.101,6.0]
[1643401101309,3.03949728,91.228,91.11,13.04]
[1643401101507,3.03949728,91.228,91.112,6.0]
[1643401101709,36.34073112,91.227,91.13,16.458]
[1643401101907,36.34073112,91.227,91.14,13.04]
[1643401102107,6.0,91.217,91.14,13.04]
[1643401102309,6.0,91.217,91.141,0.25]
[1643401102905,0.25,91.216,91.141,0.25]
[1643401103940,6.0,91.217,91.141,0.25]
[1643401104337,3.03949728,91.254,91.141,0.25]
[1643401104538,6.0,91.244,91.142,2.95669142]
[1643401104738,6.0,91.244,91.151,109.0]
[1643401104939,3.03949728,91.274,91.16,13.04]
[1643401105137,3.03949728,91.287,91.161,52.1659]
[1643401105337,19.45391805,91.307,91.17,169.02]
[1643401105538,13.28437037,91.286,91.18,19.04]
[1643401105742,13.28437037,91.286,91.2,16.445]
[1643401105939,13.28437037,91.307,91.21,13.04]
[1643401106242,13.28437037,91.307,91.211,3.20669142]
[1643401106442,13.53437037,91.306,91.211,3.20669142]
[1643401106739,13.28437037,91.305,91.211,3.20669142]
[1643401106941,13.28437037,91.305,91.212,38.75317227]
[1643401107140,13.53437037,91.304,91.212,38.75317227]
[1643401107342,16.447,91.3,91.212,38.75317227]
[1643401107543,6.0,91.29,91.212,38.75317227]
[1643401107741,1.51695413,91.289,91.212,38.75317227]
[1643401107942,15.0513245,91.289,91.212,38.75317227]
[1643401108141,6.0,91.279,91.212,38.75317227]
[1643401108343,0.25,91.278,91.212,38.75317227]
[1643401108748,0.25,91.278,91.182,45.7945]